bitfinex/quotes_SOLUSD_20250717
["timestamp","ask_amount","ask_price","bid_price","bid_amount"]
[1752782481086,15.75558338,172.81,172.76,15.75558338]
[1752782481258,0.72,172.84,172.75,5.78871201]
[1752782481454,15.75558338,172.85,172.79,15.75558338]
[1752782481657,15.75558338,172.85,172.75,5.78871201]
[1752782481658,0.72,172.87,172.8,15.75558338]
[1752782481887,57.84,172.89,172.8,15.75558338]
[1752782481888,15.75558338,172.88,172.83,15.75558338]
[1752782482067,15.75558338,172.88,172.83,0.66]
[1752782482272,0.72,172.87,172.8,15.75558338]
[1752782482474,15.75558338,172.85,172.79,16.41558338]
[1752782482678,15.75558338,172.85,172.8,5.78679566]
[1752782482864,0.72,172.91,172.82,15.75558338]
[1752782483194,15.75558338,172.85,172.8,5.78679566]
[1752782483376,15.75558338,172.83,172.78,0.66]
[1752782483561,15.75558338,172.83,172.78,16.41558338]
[1752782483757,15.75558338,172.85,172.8,15.75558338]
[1752782483962,0.72,172.91,172.82,15.75558338]
[1752782484291,15.75558338,172.85,172.81,0.66]
[1752782484495,0.72,172.91,172.76,5.78837693]
[1752782484496,15.75558338,172.82,172.76,5.78837693]
[1752782484812,15.75558338,172.82,172.76,21.54396031]
[1752782485285,15.75558338,172.81,172.76,21.54396031]
[1752782485879,15.75558338,172.81,172.76,22.20396031]
[1752782486089,0.72,172.87,172.79,15.75558338]
[1752782486388,15.75558338,172.83,172.78,15.75558338]
[1752782486768,15.75558338,172.88,172.82,15.75558338]
[1752782487070,28.90074033,173.01,172.78,32.43877069]
[1752782487071,15.75558338,172.92,172.83,0.66]
[1752782487278,15.75558338,172.93,172.88,15.75558338]
[1752782487482,15.75558338,172.93,172.88,0.66]
[1752782487670,15.75558338,172.91,172.85,0.66]
[1752782487875,15.75558338,172.89,172.85,5.78536303]
[1752782488166,15.75558338,172.87,172.83,1.5199]
[1752782488382,15.75558338,172.86,172.81,21.54222045]
[1752782488588,15.75558338,172.9,172.82,0.66]
[1752782488972,15.75558338,172.91,172.86,15.75558338]
[1752782489169,15.75558338,172.9,172.85,15.75558338]
[1752782489366,0.72,172.9,172.85,15.75558338]
[1752782489567,0.72,172.93,172.85,16.41558338]
[1752782489900,15.75558338,172.89,172.84,15.75558338]
[1752782490571,15.75558338,172.88,172.82,0.66]
[1752782490771,15.75558338,172.86,172.81,21.54222045]
[1752782490982,15.75558338,172.91,172.85,15.75558338]
[1752782491185,0.72,172.92,172.85,15.75558338]
[1752782491186,16.47558338,172.92,172.87,15.75558338]
[1752782491381,15.75558338,172.91,172.86,15.75558338]
[1752782491871,31.86,172.95,172.86,36.00293224]
[1752782492194,1.6648,172.98,172.86,36.00293224]
[1752782492195,0.72,172.98,172.92,15.75558338]
[1752782492372,16.47558338,172.98,172.92,15.75558338]
[1752782492704,0.72,172.98,172.92,15.75558338]
[1752782492893,15.75558338,172.97,172.92,15.75558338]
[1752782493084,15.75558338,172.97,172.91,15.75558338]
[1752782493393,15.75558338,172.97,172.92,5.78302105]
[1752782493596,16.43558338,172.97,172.92,5.78302105]
[1752782493973,0.5,172.96,172.92,5.78302105]
[1752782494281,16.43558338,172.97,172.92,5.78302105]
[1752782495497,16.43558338,172.97,172.92,21.53860443]
[1752782495886,0.68,173.01,172.93,15.75558338]
[1752782496096,15.75558338,172.99,172.93,0.69]
[1752782496284,15.75558338,172.98,172.93,16.44558338]
[1752782496480,15.75558338,172.97,172.92,21.53860443]
[1752782496884,16.43558338,172.97,172.92,21.53860443]
[1752782497089,5.7800437,173.01,172.9,5.78368999]
[1752782497090,15.75558338,172.95,172.9,5.78368999]
[1752782497271,0.68,172.97,172.9,21.53927337]
[1752782497478,0.68,173.0,172.91,0.69]
[1752782497789,47.61558338,173.03,172.97,15.75558338]
[1752782498380,15.75558338,172.98,172.93,47.59558338]
[1752782498575,15.75558338,172.99,172.94,15.75558338]
[1752782498897,0.03,173.05,172.98,15.75558338]
[1752782499102,0.03,173.05,173.02,15.75558338]
[1752782499401,15.75558338,173.04,172.99,15.75558338]
[1752782499603,15.75558338,173.01,172.95,5.78201792]
[1752782499785,0.68,173.03,172.96,15.75558338]
[1752782499979,15.75558338,173.01,172.96,15.75558338]
[1752782500208,15.75558338,173.01,172.96,16.44558338]
[1752782500699,15.75558338,173.0,172.95,21.5376013]
[1752782500892,15.75558338,173.0,172.94,15.75558338]
[1752782501097,10.29510028,172.97,172.91,5.7833555]
[1752782501603,0.68,172.99,172.9,32.53]
[1752782501604,10.29510028,172.94,172.9,0.69]
[1752782501900,10.29510028,172.96,172.9,16.76866662]
[1752782502204,10.29510028,172.95,172.9,16.07866662]
[1752782502505,10.29510028,172.96,172.9,30.5378916]
[1752782502806,10.29510028,172.99,172.94,10.29510028]
[1752782503000,0.68,173.0,172.95,0.69]
[1752782503001,10.29510028,173.0,172.95,0.69]
[1752782503175,10.29510028,172.98,172.93,10.29510028]
[1752782503377,0.68,172.99,172.92,10.29510028]
[1752782503593,0.68,172.99,172.88,1.6548]
[1752782503594,10.29510028,172.95,172.89,10.29510028]
[1752782503794,10.29510028,172.94,172.89,10.29510028]
[1752782504018,10.29510028,172.91,172.88,5.78426637]
[1752782504192,10.29510028,172.91,172.87,31.84]
[1752782504193,10.29510028,172.91,172.87,37.62466507]
[1752782504397,10.29510028,172.91,172.85,0.69]
[1752782504398,10.29510028,172.9,172.86,5.78497314]
[1752782505296,10.29510028,172.88,172.85,5.78531564]
[1752782505497,10.29510028,172.88,172.84,5.78569775]
[1752782505993,10.29510028,172.89,172.85,0.69]
[1752782506193,10.29510028,172.89,172.84,5.78569775]
[1752782506399,10.29510028,172.85,172.82,5.84628916]
[1752782506617,10.29510028,172.86,172.82,5.84628916]
[1752782506917,0.68,172.88,172.83,10.29510028]
[1752782507221,10.29510028,172.87,172.82,6.53628916]
[1752782507397,10.29510028,172.86,172.82,6.53628916]
[1752782507724,10.29510028,172.87,172.82,6.53628916]
[1752782508022,0.68,172.88,172.82,16.83138944]
[1752782508219,0.68,172.88,172.82,6.53628916]
[1752782508804,10.29510028,172.86,172.82,0.06]
[1752782509021,0.68,172.86,172.82,0.06]
[1752782509224,5.78453451,172.88,172.82,0.06]
[1752782509225,0.68,172.85,172.82,0.06]
[1752782509405,10.29510028,172.83,172.82,0.06]
[1752782509608,0.68,172.84,172.82,0.06]
[1752782509824,10.29510028,172.83,172.82,0.06]
[1752782510031,10.29510028,172.84,172.82,0.06]
[1752782510238,10.29510028,172.83,172.82,0.06]
[1752782510547,0.68,172.83,172.82,0.06]
[1752782510714,10.97510028,172.83,172.82,0.06]
[1752782510910,0.68,172.86,172.82,0.06]
[1752782511131,10.29510028,172.85,172.82,0.06]
[1752782511314,10.29510028,172.84,172.82,0.06]
[1752782511505,0.68,172.85,172.82,0.06]
[1752782511708,10.29510028,172.83,172.82,0.06]
[1752782512134,0.68,172.83,172.82,0.06]
[1752782512632,10.97510028,172.83,172.82,0.06]
[1752782512843,0.68,172.87,172.82,0.06]
[1752782513011,10.29510028,172.86,172.82,0.06]
[1752782513436,0.68,172.87,172.82,0.06]
[1752782513728,10.29510028,172.89,172.83,6.47603251]
[1752782513942,10.29510028,172.92,172.87,10.29510028]
[1752782514147,10.29510028,172.92,172.83,5.78603251]
[1752782514437,10.29510028,172.91,172.84,0.69]
[1752782514733,10.29510028,172.91,172.86,10.29510028]
[1752782514950,0.68,172.93,172.84,0.69]
[1752782514951,10.29510028,172.89,172.84,0.69]
[1752782515161,10.29510028,172.86,172.82,0.06]
[1752782515331,0.68,172.88,172.82,0.06]
[1752782515532,10.29510028,172.85,172.82,0.06]
[1752782515749,5.78497293,172.87,172.82,0.06]
[1752782515946,10.97510028,172.85,172.82,0.06]
[1752782516157,10.29510028,172.84,172.82,0.06]
[1752782516452,10.97510028,172.84,172.82,0.06]
[1752782517559,6.46497293,172.87,172.82,0.06]
[1752782517754,10.29510028,172.85,172.82,0.06]
[1752782518259,10.29510028,172.83,172.82,0.06]
[1752782518659,10.97510028,172.83,172.82,0.06]
[1752782519036,10.29510028,172.83,172.82,0.06]
[1752782519838,10.97510028,172.83,172.82,0.06]
[1752782520063,0.68,172.83,172.82,0.06]
[1752782520253,10.97510028,172.83,172.82,0.06]
[1752782520663,10.29510028,172.85,172.82,0.06]
[1752782520873,0.68,172.86,172.82,0.06]
[1752782521039,10.97510028,172.85,172.82,0.06]
[1752782521240,0.68,172.85,172.82,0.06]
[1752782521461,0.68,172.84,172.82,0.06]
[1752782521761,5.78435909,172.88,172.82,16.14146759]
[1752782521762,10.29510028,172.88,172.82,16.14146759]
[1752782523463,10.98510028,172.83,172.82,0.06]
[1752782523772,0.69,172.86,172.82,0.06]
[1752782523949,6.47402452,172.89,172.82,0.77]
[1752782524264,10.29510028,172.87,172.82,0.77]
[1752782524640,10.29510028,172.86,172.82,0.77]
[1752782524872,0.69,172.85,172.82,0.06]
[1752782525049,10.29510028,172.83,172.82,0.06]
[1752782525241,10.98510028,172.83,172.82,0.06]
[1752782525744,16.77113279,172.83,172.82,0.06]
[1752782526964,41.53131436,172.83,172.69,10.29510028]
[1752782527150,26.0,172.8,172.69,16.08568123]
[1752782527352,0.69,172.79,172.69,16.08568123]
[1752782527562,32.18,172.78,172.68,16.85610166]
[1752782527862,5.78837693,172.76,172.69,10.29510028]
[1752782528071,10.29510028,172.75,172.69,10.29510028]
[1752782528248,10.29510028,172.74,172.68,6.56100138]
[1752782528443,0.69,172.75,172.68,0.77]
[1752782528646,10.29510028,172.74,172.69,10.29510028]
[1752782528879,10.29510028,172.7,172.68,0.06]
[1752782529177,10.29510028,172.69,172.58,18.80180028]
[1752782529470,10.29510028,172.7,172.59,10.29510028]
[1752782529471,10.29510028,172.64,172.59,10.29510028]
[1752782529677,10.29510028,172.65,172.61,5.7934071]
[1752782529925,37.990099,172.71,172.62,0.71]
[1752782530215,10.29510028,172.7,172.62,0.71]
[1752782530418,0.69,172.72,172.67,10.29510028]
[1752782530622,10.29510028,172.74,172.68,0.71]
[1752782530833,32.95,172.75,172.69,10.29510028]
[1752782530998,10.29510028,172.73,172.68,10.29510028]
[1752782531198,10.98510028,172.73,172.68,10.29510028]
[1752782531397,10.29510028,172.72,172.67,10.29510028]
[1752782531604,10.29510028,172.72,172.66,5.79172941]
[1752782531804,10.29510028,172.7,172.65,6.50198659]
[1752782532005,6.47941564,172.73,172.65,16.79708687]
[1752782532208,10.29510028,172.71,172.65,6.50198659]
[1752782532421,10.29510028,172.7,172.65,6.50198659]
[1752782532621,10.29510028,172.7,172.65,5.79198659]
[1752782532804,0.69,172.69,172.63,0.71]
[1752782533003,10.29510028,172.68,172.63,11.00510028]
[1752782533301,0.69,172.71,172.63,5.79267945]
[1752782533637,10.29510028,172.69,172.64,10.29510028]
[1752782533803,10.29510028,172.69,172.65,5.79206487]
[1752782533998,10.29510028,172.68,172.64,5.79231309]
[1752782534198,6.48008116,172.71,172.64,5.79231309]
[1752782534403,10.29510028,172.69,172.64,16.08741337]
[1752782534605,0.69,172.69,172.64,16.08741337]
[1752782534913,10.29510028,172.69,172.64,16.08741337]
[1752782535221,0.69,172.75,172.68,10.29510028]
[1752782535423,10.29510028,172.77,172.72,10.29510028]
[1752782535607,10.98510028,172.78,172.72,0.71]
[1752782535807,10.98510028,172.78,172.73,16.08448255]
[1752782536012,10.29510028,172.79,172.74,10.29510028]
[1752782536201,10.29510028,172.79,172.74,0.71]
[1752782536402,10.29510028,172.77,172.72,10.29510028]
[1752782536619,10.29510028,172.78,172.69,20.26753141]
[1752782536920,10.29510028,172.78,172.73,10.29510028]
[1752782537520,10.98510028,172.77,172.72,10.29510028]
[1752782537725,10.98510028,172.77,172.72,5.78971746]
[1752782538029,10.29510028,172.74,172.69,0.57907232]
[1752782538217,10.98510028,172.76,172.69,5.79067255]
[1752782538415,5.78775478,172.78,172.64,6.2925]
[1752782538416,10.29510028,172.71,172.64,6.2925]
[1752782538601,10.29510028,172.68,172.64,0.77]
[1752782538801,0.69,172.68,172.64,0.06]
[1752782539013,15.7942748,172.67,172.64,0.06]
[1752782539404,15.7942748,172.66,172.64,0.06]
[1752782540125,15.7942748,172.65,172.64,0.06]
[1752782540326,0.69,172.66,172.64,0.06]
[1752782540626,15.7942748,172.68,172.64,0.77]
[1752782541004,65.2752,172.75,172.66,15.7942748]
[1752782541199,15.7942748,172.71,172.65,0.71]
[1752782541506,15.7942748,172.72,172.65,0.71]
[1752782541812,15.7942748,172.72,172.66,5.79172941]
[1752782542002,15.7942748,172.72,172.67,15.7942748]
[1752782542198,16.4842748,172.72,172.67,15.7942748]
[1752782542403,16.4842748,172.72,172.66,5.79172941]
[1752782542599,16.4842748,172.72,172.67,15.7942748]
[1752782543103,16.4842748,172.72,172.67,21.58546266]
[1752782543304,38.5852,172.75,172.68,15.7942748]
[1752782543531,15.7942748,172.74,172.68,0.71]
[1752782543734,48.6242748,172.75,172.7,15.7942748]
[1752782544229,32.14,172.75,172.72,14.7942748]
[1752782544401,15.7942748,172.77,172.72,15.7942748]
[1752782544605,15.7942748,172.76,172.71,16.5042748]
[1752782545028,16.4842748,172.77,172.72,15.7942748]
[1752782545216,15.7942748,172.76,172.71,16.5042748]
[1752782545410,15.7942748,172.76,172.71,22.29422461]
[1752782546118,32.77,172.8,172.73,15.7942748]
[1752782546317,15.7942748,172.79,172.74,15.7942748]
[1752782546523,32.08,172.8,172.76,15.7942748]
[1752782546713,15.7942748,172.82,172.77,15.7942748]
[1752782547022,15.7942748,172.82,172.77,16.5042748]
[1752782547218,26.0,172.8,172.78,21.58182821]
[1752782547414,47.8342748,172.84,172.79,15.7942748]
[1752782547612,47.8342748,172.84,172.8,15.7942748]
[1752782547613,32.04,172.84,172.8,15.7942748]
[1752782547916,14.45968372,172.9,172.76,6.49837693]
[1752782547917,15.7942748,172.81,172.76,6.49837693]
[1752782548115,26.0,172.76,172.72,0.71]
[1752782548421,20.24642795,172.87,172.7,22.0501748]
[1752782548422,26.0,172.72,172.7,22.0501748]
[1752782548628,15.7942748,172.75,172.7,5.79031287]
[1752782548629,26.0,172.71,172.7,5.79031287]
[1752782549037,0.69,172.75,172.7,22.29458767]
[1752782549038,26.0,172.72,172.7,22.29458767]
[1752782549535,26.0,172.72,172.71,16.5042748]
[1752782549737,26.0,172.73,172.71,16.5042748]
[1752782550042,26.0,172.73,172.7,5.79031287]
[1752782550217,26.0,172.73,172.71,15.7942748]
[1752782550635,26.0,172.76,172.71,16.5042748]
[1752782550826,42.4842748,172.76,172.7,5.79031287]
[1752782551129,26.0,172.71,172.7,5.79031287]
[1752782551514,26.0,172.71,172.69,5.79072326]
[1752782551823,26.0,172.69,172.68,1.6086]
[1752782552138,26.0,172.71,172.67,47.8342748]
[1752782552363,26.0,172.69,172.67,48.5442748]
[1752782552516,26.0,172.69,172.68,16.5042748]
[1752782553017,26.0,172.74,172.68,22.24524737]
[1752782553216,26.0,172.74,172.73,15.7942748]
[1752782553640,26.0,172.74,172.72,15.7942748]
[1752782553845,26.72,172.74,172.68,15.13764651]
[1752782554142,26.72,172.74,172.68,0.66]
[1752782554361,15.7942748,172.71,172.66,5.79172941]
[1752782554541,15.7942748,172.7,172.66,5.79172941]
[1752782555358,16.5142748,172.7,172.66,5.79172941]
[1752782555953,0.5,172.73,172.69,15.7942748]
[1752782556323,0.5,172.73,172.67,0.66]
[1752782556324,15.7942748,172.72,172.67,0.66]
[1752782556530,0.5,172.73,172.69,15.7942748]
[1752782556730,0.5,172.73,172.7,0.66]
[1752782556918,1.22,172.73,172.66,20.93105293]
[1752782557119,0.5,172.73,172.66,20.93105293]
[1752782557342,0.5,172.73,172.7,15.7942748]
[1752782557642,0.5,172.73,172.68,5.7910586]
[1752782557853,16.2942748,172.73,172.68,22.2453334]
[1752782558223,15.7942748,172.72,172.68,5.7910586]
[1752782558548,0.5,172.73,172.69,0.66]
[1752782558719,0.5,172.73,172.7,0.66]
[1752782559042,16.2942748,172.73,172.68,36.06297991]
[1752782559241,16.2942748,172.73,172.68,36.72297991]
[1752782559442,15.7942748,172.69,172.64,15.20058018]
[1752782559614,0.72,172.72,172.64,0.06]
[1752782559615,15.7942748,172.67,172.64,0.06]
[1752782559820,5.78983903,172.72,172.64,0.06]
[1752782559821,15.7942748,172.65,172.64,0.06]
[1752782560326,26.0,172.7,172.64,0.06]
[1752782560525,0.72,172.69,172.64,5.85235976]
[1752782560744,0.5,172.73,172.65,0.66]
[1752782560921,15.7942748,172.72,172.65,0.66]
[1752782561247,15.7942748,172.75,172.7,15.7942748]
[1752782561418,15.7942748,172.75,172.7,16.4542748]
[1752782561618,15.7942748,172.76,172.71,21.58432748]
[1752782561822,0.03,172.77,172.72,15.7942748]
[1752782562122,0.03,172.77,172.74,15.7942748]
[1752782562641,0.5,172.76,172.75,0.66]
[1752782562821,0.5,172.76,172.75,16.4542748]
[1752782563165,0.03,172.84,172.75,49.3542748]
[1752782563319,0.03,172.84,172.83,15.7942748]
[1752782563522,0.03,172.84,172.83,21.58030731]
[1752782563740,0.03,172.84,172.83,22.24030731]
[1752782564119,0.03,172.84,172.83,6.44603251]
[1752782564316,16.5442748,172.84,172.79,5.78731848]
[1752782564519,0.75,172.84,172.79,5.78731848]
[1752782564753,0.03,172.84,172.79,5.78731848]
[1752782564929,0.03,172.84,172.81,15.7942748]
[1752782565127,0.03,172.84,172.8,16.4542748]
[1752782565335,0.03,172.84,172.81,0.66]
[1752782565527,0.03,172.84,172.81,16.4542748]
[1752782565721,0.03,172.84,172.82,5.78636731]
[1752782565926,0.03,172.84,172.81,22.24096939]
[1752782566129,0.03,172.84,172.81,6.44669459]
[1752782567039,0.03,172.84,172.82,0.66]
[1752782567625,0.03,172.84,172.82,6.44623696]
[1752782568228,0.03,172.84,172.81,5.7867019]
[1752782568421,15.7942748,172.83,172.76,39.5125]
[1752782568626,0.75,172.84,172.76,39.38834435]
[1752782568828,0.75,172.84,172.73,0.66]
[1752782568829,32.84,172.83,172.73,0.66]
[1752782569123,0.72,172.82,172.73,0.66]
[1752782569433,0.72,172.82,172.73,6.44935418]
[1752782569643,15.7942748,172.78,172.73,6.44935418]
[1752782569942,0.72,172.82,172.74,16.4542748]
[1752782569943,6.5063674,172.82,172.74,16.4542748]
[1752782570126,6.5063674,172.82,172.74,0.66]
[1752782570327,15.7942748,172.79,172.74,16.4542748]
[1752782570522,15.7942748,172.79,172.75,0.66]
[1752782570739,0.72,172.82,172.75,0.66]
[1752782570960,15.7942748,172.81,172.76,15.7942748]
[1752782571238,15.7942748,172.77,172.73,6.44935418]
[1752782571441,15.7942748,172.77,172.73,5.78935418]
[1752782571643,15.7942748,172.78,172.73,22.24362898]
[1752782572657,15.7942748,172.76,172.72,5.78965259]
[1752782572831,0.72,172.77,172.72,22.24392739]
[1752782572832,15.7942748,172.77,172.72,22.24392739]
[1752782573020,15.7942748,172.75,172.72,5.78965259]
[1752782573231,15.7942748,172.76,172.72,5.78965259]
[1752782573419,15.7942748,172.76,172.72,6.44965259]
[1752782573634,15.7942748,172.76,172.72,5.78965259]
[1752782574136,15.7942748,172.76,172.71,5.79005268]
[1752782574463,15.7942748,172.77,172.72,16.4542748]
[1752782574662,0.72,172.79,172.73,15.7942748]
[1752782574856,6.53601045,172.84,172.77,15.7942748]
[1752782575063,15.7942748,172.82,172.77,15.7942748]
[1752782575364,0.03,172.84,172.81,15.7942748]
[1752782575660,0.03,172.84,172.81,0.66]
[1752782575844,0.03,172.84,172.83,15.7942748]
[1752782576172,0.03,172.84,172.83,5.78603251]
[1752782576340,0.03,172.84,172.8,0.5787037]
[1752782576537,0.03,172.84,172.8,21.58119681]
[1752782576843,0.03,172.84,172.81,16.4542748]
[1752782577155,15.8242748,172.84,172.79,21.58160939]
[1752782577350,0.03,172.84,172.8,0.66]
[1752782577554,15.8242748,172.84,172.79,5.78733459]
[1752782577763,15.7942748,172.83,172.79,5.78733459]
[1752782577972,16.5442748,172.84,172.79,5.78733459]
[1752782578149,15.7942748,172.83,172.79,5.78733459]
[1752782578466,15.7942748,172.81,172.75,15.7942748]
[1752782578646,15.7942748,172.8,172.74,5.78904712]
[1752782578851,15.7942748,172.77,172.74,5.78904712]
[1752782579063,0.72,172.81,172.74,22.24332192]
[1752782579363,15.7942748,172.79,172.74,22.24332192]
[1752782579745,15.7942748,172.78,172.74,6.44904712]
[1752782580268,0.72,172.81,172.75,0.66]
[1752782580466,15.7942748,172.78,172.74,5.78904712]
[1752782580656,15.7942748,172.77,172.74,5.78904712]
[1752782580971,15.7942748,172.75,172.74,0.06]
[1752782581272,15.7942748,172.78,172.74,0.72]
[1752782581478,15.7942748,172.8,172.75,0.66]
[1752782581654,15.7942748,172.8,172.74,0.06]
[1752782581655,15.7942748,172.76,172.74,0.06]
[1752782581969,0.72,172.79,172.74,0.06]
[1752782581970,15.7942748,172.75,172.74,0.06]
[1752782582161,21.58298681,172.75,172.74,0.06]
[1752782582481,22.30298681,172.75,172.74,0.06]
[1752782583144,0.72,172.75,172.74,0.06]
[1752782583342,15.7942748,172.75,172.74,0.06]
[1752782583546,15.7942748,172.76,172.74,0.06]
[1752782583871,16.4542748,172.75,172.66,0.06]
[1752782584070,15.7942748,172.67,172.66,0.06]
[1752782584579,22.24566878,172.67,172.66,0.06]
[1752782584871,16.4542748,172.67,172.66,0.06]
[1752782585245,15.7942748,172.67,172.66,0.06]
[1752782585465,0.66,172.7,172.66,0.06]
[1752782585688,15.7942748,172.68,172.66,0.06]
[1752782585852,16.4542748,172.68,172.66,0.06]
[1752782586052,15.7942748,172.68,172.66,0.06]
[1752782586266,15.7942748,172.7,172.66,0.06]
[1752782586455,6.44832361,172.77,172.69,15.7942748]
[1752782586659,15.7942748,172.75,172.69,16.4942748]
[1752782586866,15.7942748,172.7,172.66,0.06]
[1752782587264,15.7942748,172.71,172.67,0.7]
[1752782587464,15.7942748,172.73,172.68,16.4942748]
[1752782587659,15.7942748,172.72,172.69,0.7]
[1752782587867,39.38815315,172.77,172.68,15.7942748]
[1752782587868,15.7942748,172.73,172.68,15.7942748]
[1752782588181,15.7942748,172.73,172.69,5.79072326]
[1752782588856,15.7942748,172.7,172.66,0.06]
[1752782589061,15.7942748,172.69,172.66,0.06]
[1752782589353,0.66,172.74,172.67,0.7]
[1752782589558,15.7942748,172.71,172.67,0.7]
[1752782589767,15.7942748,172.72,172.67,16.4942748]
[1752782589968,15.7942748,172.72,172.67,0.7]
[1752782590153,15.7942748,172.71,172.67,6.49120079]
[1752782590350,15.7942748,172.72,172.67,22.28547559]
[1752782590776,15.7942748,172.72,172.68,0.7]
[1752782590977,15.7942748,172.72,172.66,15.7942748]
[1752782590978,15.7942748,172.71,172.66,15.7942748]
[1752782591374,15.7942748,172.72,172.67,15.7942748]
[1752782591587,10.0,172.74,172.62,0.57930714]
[1752782591877,10.0,172.76,172.72,15.7942748]
[1752782592175,16.4542748,172.77,172.72,5.78971746]
[1752782592384,25.7942748,172.76,172.72,5.78971746]
[1752782592557,10.0,172.77,172.73,15.7942748]
[1752782592757,10.0,172.77,172.72,5.78971746]
[1752782592758,10.0,172.75,172.72,5.78971746]
[1752782593082,26.2942748,172.75,172.7,15.7942748]
[1752782593272,26.4542748,172.79,172.74,15.7942748]
[1752782593469,15.7942748,172.75,172.66,15.7942748]
[1752782593779,25.7942748,172.71,172.66,15.7942748]
[1752782594155,15.7942748,172.7,172.64,0.69]
[1752782594357,25.7942748,172.7,172.65,21.58606443]
[1752782594552,26.4542748,172.71,172.66,15.7942748]
[1752782594788,10.0,172.72,172.68,15.7942748]
[1752782594981,15.7942748,172.73,172.68,15.7942748]
[1752782595774,10.0,172.72,172.68,15.7942748]
[1752782596160,0.66,172.71,172.66,15.7942748]
[1752782596357,10.0,172.72,172.68,15.7942748]
[1752782596556,49.2942748,172.74,172.69,15.7942748]
[1752782596777,38.92314277,172.88,172.67,20.26987895]
[1752782596778,10.0,172.79,172.73,15.7942748]
[1752782596980,10.0,172.8,172.77,15.7942748]
[1752782597173,32.8,172.81,172.77,15.7942748]
[1752782597358,10.0,172.8,172.78,15.7942748]
[1752782597558,10.0,172.8,172.77,15.7942748]
[1752782597760,0.03,172.84,172.79,15.7942748]
[1752782597984,0.03,172.84,172.83,15.7942748]
[1752782598361,0.03,172.84,172.83,21.58030731]
[1752782599377,0.03,172.84,172.83,5.78603251]
[1752782599786,0.03,172.84,172.82,5.78628562]
[1752782599956,0.03,172.84,172.82,21.58056042]
[1752782601271,10.0,172.86,172.82,21.58056042]
[1752782601471,10.0,172.88,172.85,15.7942748]
[1752782601796,10.0,172.87,172.84,15.7942748]
[1752782601991,15.7942748,172.87,172.82,5.78628562]
[1752782602301,10.0,172.85,172.82,5.78628562]
[1752782602468,10.0,172.85,172.8,5.78703703]
[1752782602797,26.37354839,172.86,172.8,21.58131183]
[1752782602977,10.0,172.85,172.8,21.58131183]
[1752782603170,10.66,172.85,172.8,21.58131183]
[1752782603488,10.0,172.86,172.81,16.4942748]
[1752782603690,10.0,172.85,172.8,6.36574073]
[1752782603872,15.7942748,172.81,172.77,5.7880419]
[1752782604063,25.7942748,172.81,172.77,5.7880419]
[1752782604268,15.7942748,172.81,172.77,5.7880419]
[1752782604494,25.7942748,172.81,172.77,5.7880419]
[1752782604702,42.7,172.84,172.8,15.7942748]
[1752782604858,32.7,172.84,172.81,15.7942748]
[1752782605061,10.0,172.83,172.8,15.7942748]
[1752782605264,10.0,172.83,172.78,0.7]
[1752782605494,10.0,172.83,172.79,15.7942748]
[1752782605696,32.7,172.84,172.82,15.7942748]
[1752782605875,32.7,172.84,172.83,16.4942748]
[1752782606065,58.4942748,172.88,172.83,16.4942748]
[1752782606398,10.0,172.87,172.83,15.7942748]
[1752782606773,32.7,172.88,172.84,21.57997255]
[1752782606980,32.7,172.88,172.85,15.7942748]
[1752782607196,42.7,172.88,172.85,15.7942748]
[1752782607774,10.0,172.9,172.87,15.7942748]
[1752782607992,0.03,172.91,172.87,15.7942748]
[1752782608211,0.03,172.91,172.89,15.7942748]
[1752782608495,0.03,172.91,172.9,1.27836899]
[1752782608665,0.03,172.91,172.85,1.2785363]
[1752782608865,0.03,172.91,172.89,15.7942748]
[1752782609068,0.03,172.91,172.9,15.7942748]
[1752782609808,0.03,172.91,172.88,5.78435909]
[1752782610102,15.8242748,172.91,172.85,15.7942748]
[1752782610272,26.4542748,172.9,172.85,21.57963783]
[1752782610470,10.0,172.89,172.85,21.57963783]
[1752782611590,10.0,172.89,172.87,16.4942748]
[1752782611786,10.0,172.9,172.87,16.4942748]